lending/lending_fUSD_20250819
["ID","MTS","AMOUNT","RATE_DAILY","PERIOD"]
[380271310,1755630737823,-2077.7,0.00024095,30]
[380271311,1755630737878,-515.32264588,0.00024095,30]
[380271312,1755630737931,-400.0,0.00024095,30]
[380271313,1755630737987,-400.0,0.00024095,30]
[380271314,1755630738046,-3186.14,0.00024095,30]
[380271315,1755630738106,-2093.14,0.00024095,30]
[380271316,1755630738171,-400.0,0.00024095,30]
[380271317,1755630738235,-3535.78,0.00024095,30]
[380271318,1755630738300,-790.95,0.00024095,30]
[380271319,1755630738379,-2875.96,0.00024095,30]
[380271320,1755630738442,-593.85,0.00024095,30]
[380271321,1755630738503,-1801.97,0.00024095,30]
[380271322,1755630738563,-691.08,0.00024095,30]
[380271323,1755630738623,-400.0,0.00024095,30]
[380271324,1755630738684,-962.38,0.00024095,30]
[380271325,1755630738742,-1485.42,0.00024095,30]
[380271326,1755630738802,-400.0,0.00024095,30]
[380271327,1755630738861,-400.0,0.00024095,30]
[380271328,1755630738922,-1374.41,0.00024095,30]
[380271329,1755630738984,-400.0,0.00024095,30]
[380271330,1755630739050,-642.48,0.00024095,30]
[380271331,1755630739118,-400.0,0.00024095,30]
[380271332,1755630739188,-2227.75,0.00024095,30]
[380271333,1755630739254,-400.0,0.00024095,30]
[380271334,1755630739319,-400.0,0.00024095,30]
[380271335,1755630739382,-1008.89,0.00024095,30]
[380271336,1755630739443,-935.31,0.00024095,30]
[380271337,1755630739505,-400.0,0.00024095,30]
[380271338,1755630739568,-734.31,0.00024095,30]
[380271339,1755630739631,-760.31,0.00024095,30]
[380271340,1755630739691,-543.43,0.00024095,30]
[380271341,1755630739752,-400.0,0.00024095,30]
[380271342,1755630739808,-588.82,0.00024095,30]
[380271343,1755630739867,-498.35,0.00024095,30]
[380271344,1755630739926,-400.0,0.00024095,30]
[380271345,1755630739985,-1235.39,0.00024095,30]
[380271346,1755630740047,-1209.49,0.00024095,30]
[380271347,1755630740108,-400.0,0.00024095,30]
[380271348,1755630740171,-400.0,0.00024095,30]
[380271349,1755630740234,-1853.54,0.00024095,30]
[380271350,1755630740296,-818.2,0.00024095,30]
[380271351,1755630740358,-1158.12,0.00024095,30]
[380271352,1755630740419,-340.0,0.00024095,30]
[380271353,1755630740478,-845.97,0.00024095,30]
[380271354,1755630740536,-1453.42,0.00024095,30]
[380271355,1755630740594,-1268.36,0.00024095,30]
[380271356,1755630740650,-400.0,0.00024095,30]
[380271357,1755630740709,-1608.12,0.00024095,30]
[380271358,1755630740766,-838.71,0.00024095,30]
[380271359,1755630740823,-2072.48,0.00024095,30]
[380271360,1755630740879,-400.0,0.00024095,30]
[380271361,1755630740936,-2234.05,0.00024095,30]
[380271362,1755630740990,-553.19,0.00024095,30]
[380271363,1755630741045,-400.0,0.00024095,30]
[380271364,1755630741105,-2377.86,0.00024095,30]
[380271365,1755630741172,-656.71,0.00024095,30]
[380271366,1755630741238,-1003.6,0.00024095,30]
[380271367,1755630741301,-491.09,0.00024095,30]
[380271368,1755630741362,-575.64,0.00024095,30]
[380271369,1755630741425,-890.27,0.00024095,30]
[380271370,1755630741625,-2729.75,0.00024095,30]
[380271371,1755630741683,-400.0,0.00024095,30]
[380271372,1755630741742,-400.0,0.00024095,30]
[380271373,1755630741799,-400.0,0.00024095,30]
[380271374,1755630741857,-887.1,0.00024095,30]
[380271375,1755630741915,-1586.0,0.00024095,30]
[380271376,1755630741974,-400.0,0.00024095,30]
[380271377,1755630742033,-400.0,0.00024095,30]
[380271378,1755630742091,-400.0,0.00024095,30]
[380271379,1755630742151,-1550.01,0.00024095,30]
[380271380,1755630742212,-468.86,0.00024095,30]
[380271381,1755630742274,-2791.41,0.00024095,30]
[380271382,1755630742334,-665.78,0.00024095,30]
[380271383,1755630742396,-400.0,0.00024095,30]
[380271384,1755630742457,-1245.26,0.00024095,30]
[380271385,1755630742516,-1677.64,0.00024095,30]
[380271386,1755630742575,-3451.63,0.00024095,30]
[380271387,1755630742631,-400.0,0.00024095,30]
[380271388,1755630742688,-1005.04,0.00024095,30]
[380271389,1755630742745,-400.0,0.00024095,30]
[380271390,1755630742803,-1183.6,0.00024095,30]
[380271391,1755630742859,-400.0,0.00024095,30]
[380271392,1755630742914,-1571.68,0.00024095,30]
[380271393,1755630742971,-400.0,0.00024095,30]
[380271394,1755630743031,-400.0,0.00024095,30]
[380271395,1755630743093,-400.0,0.00024095,30]
[380271396,1755630743155,-734.99,0.00024095,30]
[380271397,1755630743218,-1852.19,0.00024095,30]
[380271398,1755630743277,-3306.45,0.00024095,30]
[380271399,1755630743339,-953.11,0.00024095,30]
[380271400,1755630743401,-2734.83,0.00024095,30]
[380271401,1755630743461,-1981.94,0.00024095,30]
[380271402,1755630743517,-553.29,0.00024095,30]
[380271403,1755630743574,-486.58,0.00024095,30]
[380271404,1755630743628,-400.0,0.00024095,30]
[380271405,1755630743682,-987.13,0.00024095,30]
[380271406,1755630743736,-713.66,0.00024095,30]
[380271407,1755630743797,-1769.53,0.00024095,30]
[380271408,1755630743860,-1151.9,0.00024095,30]
[380271409,1755630743919,-400.0,0.00024095,30]
[380271410,1755630743976,-2191.01,0.00024095,30]
[380271411,1755630744036,-1484.23,0.00024095,30]
[380271412,1755630744096,-1462.98,0.00024095,30]
[380271413,1755630744161,-400.0,0.00024095,30]
[380271414,1755630744223,-400.0,0.00024095,30]
[380271415,1755630744284,-584.29,0.00024095,30]
[380271416,1755630744348,-1594.1,0.00024095,30]
[380271417,1755630744411,-400.0,0.00024095,30]
[380271418,1755630744474,-1595.91,0.00024095,30]
[380271419,1755630744534,-400.0,0.00024095,30]
[380271420,1755630744594,-400.0,0.00024095,30]
[380271421,1755630744654,-3407.34,0.00024095,30]
[380271422,1755630744716,-1455.26,0.00024095,30]
[380271423,1755630744777,-1524.7,0.00024095,30]
[380271424,1755630744836,-1790.8,0.00024095,30]
[380271425,1755630744894,-2909.2,0.00024095,30]
[380271426,1755630744954,-644.07,0.00024095,30]
[380271427,1755630745016,-1873.68,0.00024095,30]
[380271428,1755630745082,-400.0,0.00024095,30]
[380271429,1755630745148,-1158.18,0.00024095,30]
[380271430,1755630745214,-400.0,0.00024095,30]
[380271431,1755630745279,-400.0,0.00024095,30]
[380271432,1755630745346,-3025.09,0.00024095,30]
[380271433,1755630745413,-400.0,0.00024095,30]
[380271434,1755630745475,-2938.04,0.00024095,30]
[380271435,1755630745543,-1809.01,0.00024095,30]
[380271436,1755630745608,-400.0,0.00024095,30]
[380271437,1755630745670,-2010.96,0.00024095,30]
[380271438,1755630745729,-2130.28,0.00024095,30]
[380271439,1755630745791,-846.47,0.00024095,30]
[380271440,1755630745849,-4782.04,0.00024095,30]
[380271441,1755630745909,-1217.18,0.00024095,30]
[380271442,1755630745968,-490.99,0.00024095,30]
[380271443,1755630746029,-400.0,0.00024095,30]
[380271444,1755630746089,-400.0,0.00024095,30]
[380271445,1755630746153,-928.72,0.00024095,30]
[380271446,1755630746222,-400.0,0.00024095,30]
[380271447,1755630746290,-1675.25,0.00024095,30]
[380271448,1755630746358,-1922.59,0.00024095,30]
[380271449,1755630746423,-1996.2,0.00024095,30]
[380271450,1755630746489,-400.0,0.00024095,30]
[380271451,1755630746552,-3257.29,0.00024095,30]
[380271452,1755630746611,-528.29707486,0.00024095,30]
[380271453,1755630746671,-593.75,0.00024095,30]
[380271454,1755630746730,-400.0,0.00024095,30]
[380271455,1755630746789,-861.27,0.00024095,30]
[380271456,1755630746845,-1189.14,0.00024095,30]
[380271457,1755630746899,-400.0,0.00024095,30]
[380271458,1755630746958,-422.52,0.00024095,30]
[380271459,1755630747019,-400.0,0.00024095,30]
[380271460,1755630747081,-1492.14,0.00024095,30]
[380271461,1755630747142,-400.0,0.00024095,30]
[380271462,1755630747203,-1658.3,0.00024095,30]
[380271463,1755630747644,-3001.12,0.00024095,30]
[380271464,1755630747776,-831.55,0.00024095,30]
[380271465,1755630747839,-510.36118659,0.00024095,30]
[380271466,1755630747902,-1042.89,0.00024095,30]
[380271467,1755630747965,-712.93,0.00024095,30]
[380271468,1755630748031,-3777.75,0.00024095,30]
[380271469,1755630748097,-801.03,0.00024095,30]
[380271470,1755630748161,-1627.46,0.00024095,30]
[380271471,1755630748225,-400.0,0.00024095,30]
[380271472,1755630748286,-400.0,0.00024095,30]
[380271473,1755630748352,-669.09,0.00024095,30]
[380271474,1755630748417,-2229.74,0.00024095,30]
[380271475,1755630748483,-2223.29,0.00024095,30]
[380271476,1755630748547,-2157.52,0.00024095,30]
[380271477,1755630748609,-2318.08,0.00024095,30]
[380271478,1755630748671,-400.0,0.00024095,30]
[380271479,1755630748732,-400.0,0.00024095,30]
[380271480,1755630748793,-400.0,0.00024095,30]
[380271481,1755630748852,-2788.58,0.00024095,30]
[380271482,1755630748910,-666.25,0.00024095,30]
[380271483,1755630748970,-739.46,0.00024095,30]
[380271484,1755630749032,-400.0,0.00024095,30]
[380271485,1755630749092,-400.0,0.00024095,30]
[380271486,1755630749158,-1590.45,0.00024095,30]
[380271487,1755630749220,-1065.74,0.00024095,30]
[380271488,1755630749283,-575.07,0.00024095,30]
[380271489,1755630749347,-498.22,0.00024095,30]
[380271490,1755630749411,-400.0,0.00024095,30]
[380271491,1755630749475,-400.0,0.00024095,30]
[380271492,1755630749537,-400.0,0.00024095,30]
[380271493,1755630749601,-400.0,0.00024095,30]
[380271494,1755630749667,-6511.48,0.00024095,30]
[380271495,1755630749729,-2210.73,0.00024095,30]
[380271496,1755630749793,-2425.08,0.00024095,30]
[380271497,1755630749857,-590.81,0.00024095,30]
[380271498,1755630749920,-1227.79,0.00024095,30]
[380271499,1755630749982,-752.39,0.00024095,30]
[380271500,1755630750045,-463.19,0.00024095,30]
[380271501,1755630750110,-400.0,0.00024095,30]
[380271502,1755630750174,-1561.3,0.00024095,30]
[380271503,1755630750240,-1742.71,0.00024095,30]
[380271504,1755630750305,-400.0,0.00024095,30]
[380271505,1755630750369,-400.0,0.00024095,30]
[380271506,1755630750433,-400.0,0.00024095,30]
[380271507,1755630750497,-400.0,0.00024095,30]
[380271508,1755630750558,-944.83,0.00024095,30]
[380271509,1755630750617,-400.0,0.00024095,30]
[380271510,1755630750682,-1256.14,0.00024095,30]
[380271511,1755630750744,-2403.42,0.00024095,30]
[380271512,1755630750804,-12558.9,0.00024095,30]
[380271513,1755630750865,-400.0,0.00024095,30]
[380271514,1755630750926,-1406.06,0.00024095,30]
[380271515,1755630750988,-1252.64,0.00024095,30]
[380271516,1755630751048,-1348.48,0.00024095,30]
[380271517,1755630751109,-2108.64,0.00024095,30]
[380271518,1755630751172,-2011.64,0.00024095,30]
[380271519,1755630751234,-2694.66,0.00024095,30]
[380271520,1755630751293,-400.0,0.00024095,30]
[380271521,1755630751357,-400.0,0.00024095,30]
[380271522,1755630751421,-771.77,0.00024095,30]
[380271523,1755630751484,-1676.47,0.00024095,30]
[380271524,1755630751542,-400.0,0.00024095,30]
[380271525,1755630751601,-349.89568356,0.00024095,30]
[380271526,1755630751658,-2147.28,0.00024095,30]
[380271527,1755630751723,-400.0,0.00024095,30]
[380271528,1755630751785,-1004.69,0.00024095,30]
[380271529,1755630751845,-400.0,0.00024095,30]
[380271530,1755630751908,-400.0,0.00024095,30]
[380271531,1755630751962,-759.13,0.00024095,30]
[380271532,1755630752024,-400.0,0.00024095,30]
[380271533,1755630752089,-1766.6,0.00024095,30]
[380271534,1755630752150,-2391.14,0.00024095,30]
[380271535,1755630752212,-764.46,0.00024095,30]
[380271536,1755630752279,-2045.43,0.00024095,30]
[380271537,1755630752344,-2644.5,0.00024095,30]
[380271538,1755630752406,-1321.22,0.00024095,30]
[380271539,1755630752469,-400.0,0.00024095,30]
[380271540,1755630752533,-1028.93,0.00024095,30]
[380271541,1755630752696,-2587.83,0.00024095,30]
[380271542,1755630752757,-574.26,0.00024095,30]
[380271543,1755630752814,-400.0,0.00024095,30]
[380271544,1755630752872,-414.53,0.00024095,30]
[380271545,1755630752929,-1609.98,0.00024095,30]
[380271546,1755630752986,-1988.32,0.00024095,30]
[380271547,1755630753048,-828.08,0.00024095,30]
[380271548,1755630753114,-400.0,0.00024095,30]
[380271549,1755630753182,-400.0,0.00024095,30]
[380271550,1755630753248,-402.0,0.00024095,30]
[380271551,1755630753314,-3327.81,0.00024095,30]
[380271552,1755630753379,-2635.88,0.00024095,30]
[380271553,1755630753443,-2274.92,0.00024095,30]
[380271554,1755630753506,-3966.88,0.00024095,30]
[380271555,1755630753570,-1675.13,0.00024095,30]
[380271556,1755630753636,-400.0,0.00024095,30]
[380271557,1755630753702,-400.0,0.00024095,30]
[380271558,1755630753773,-400.0,0.00024095,30]
[380271559,1755630753843,-633.22,0.00024095,30]
[380271560,1755630753910,-400.0,0.00024095,30]
[380271561,1755630753977,-400.0,0.00024095,30]
[380271562,1755630754048,-392.19839096,0.00024095,30]
[380271563,1755630754118,-2597.2,0.00024095,30]
[380271564,1755630754188,-500.69603306,0.00024095,30]
[380271565,1755630754260,-1129.6,0.00024095,30]
[380271566,1755630754332,-1454.3,0.00024095,30]
[380271567,1755630754401,-400.0,0.00024095,30]
[380271568,1755630754470,-892.58,0.00024095,30]
[380271569,1755630754538,-1389.72,0.00024095,30]
[380271570,1755630754605,-704.57,0.00024095,30]
[380271571,1755630754673,-1626.22,0.00024095,30]
[380271572,1755630754738,-400.0,0.00024095,30]
[380271573,1755630754800,-402.52,0.00024095,30]
[380271574,1755630754860,-758.46,0.00024095,30]
[380271575,1755630754921,-2232.67,0.00024095,30]
[380271576,1755630754982,-1948.15,0.00024095,30]
[380271577,1755630755045,-646.97,0.00024095,30]
[380271578,1755630755107,-1767.01,0.00024095,30]
[380271579,1755630755169,-1951.89,0.00024095,30]
[380271580,1755630755445,-1978.37,0.00024095,30]
[380271581,1755630755509,-988.17,0.00024095,30]
[380271582,1755630755571,-1713.52,0.00024095,30]
[380271583,1755630755633,-452.3,0.00024095,30]
[380271584,1755630755693,-1178.32,0.00024095,30]
[380271585,1755630755756,-400.0,0.00024095,30]
[380271586,1755630755814,-474.04,0.00024095,30]
[380271587,1755630755873,-400.0,0.00024095,30]
[380271588,1755630755929,-400.0,0.00024095,30]
[380271589,1755630755990,-2626.25,0.00024095,30]
[380271590,1755630756052,-400.0,0.00024095,30]
[380271591,1755630756116,-2345.23,0.00024095,30]
[380271592,1755630756181,-400.0,0.00024095,30]
[380271593,1755630756244,-843.54,0.00024095,30]
[380271594,1755630756306,-2199.04,0.00024095,30]
[380271595,1755630756368,-400.0,0.00024095,30]
[380271596,1755630756432,-3426.21,0.00024095,30]
[380271597,1755630756498,-400.0,0.00024095,30]
[380271598,1755630756564,-2339.85,0.00024095,30]
[380271599,1755630756627,-1431.42,0.00024095,30]
[380271600,1755630756688,-400.0,0.00024095,30]
[380271601,1755630756751,-1879.73,0.00024095,30]
[380271602,1755630756811,-2605.4,0.00024095,30]
[380271603,1755630756871,-2170.2,0.00024095,30]
[380271604,1755630756931,-2965.05,0.00024095,30]
[380271605,1755630756993,-400.0,0.00024095,30]
[380271606,1755630757059,-1003.58,0.00024095,30]
[380271607,1755630757125,-667.84,0.00024095,30]
[380271608,1755630757186,-1775.32,0.00024095,30]
[380271609,1755630757249,-781.97,0.00024095,30]
[380271610,1755630757311,-2499.51,0.00024095,30]
[380271611,1755630757373,-400.0,0.00024095,30]
[380271612,1755630757436,-657.01,0.00024095,30]
[380271613,1755630757500,-400.0,0.00024095,30]
[380271614,1755630757561,-400.0,0.00024095,30]
[380271615,1755630757620,-400.0,0.00024095,30]
[380271616,1755630757682,-400.0,0.00024095,30]
[380271617,1755630757742,-1626.0,0.00024095,30]
[380271618,1755630757800,-834.1,0.00024095,30]
[380271619,1755630757857,-762.72,0.00024095,30]
[380271620,1755630757912,-400.0,0.00024095,30]
[380271621,1755630757970,-812.96,0.00024095,30]
[380271622,1755630758029,-1795.88,0.00024095,30]
[380271623,1755630758094,-812.84,0.00024095,30]
[380271624,1755630758160,-400.0,0.00024095,30]
[380271625,1755630758224,-2037.62,0.00024095,30]
[380271626,1755630758286,-400.0,0.00024095,30]
[380271627,1755630758351,-2089.8,0.00024095,30]
[380271628,1755630758414,-400.0,0.00024095,30]
[380271629,1755630758480,-400.0,0.00024095,30]
[380271630,1755630758545,-912.15,0.00024095,30]
[380271631,1755630758605,-1867.16,0.00024095,30]
[380271632,1755630758668,-927.26,0.00024095,30]
[380271633,1755630758732,-400.0,0.00024095,30]
[380271634,1755630758793,-1264.15,0.00024095,30]
[380271635,1755630758852,-1632.29,0.00024095,30]
[380271636,1755630758909,-1147.83,0.00024095,30]
[380271637,1755630758966,-822.45,0.00024095,30]
[380271638,1755630759027,-2642.11,0.00024095,30]
[380271639,1755630759087,-400.0,0.00024095,30]
[380271640,1755630759148,-400.0,0.00024095,30]
[380271641,1755630759210,-437.64,0.00024095,30]
[380271642,1755630759272,-400.0,0.00024095,30]
[380271643,1755630759335,-854.72,0.00024095,30]
[380271644,1755630759398,-2401.94,0.00024095,30]
[380271645,1755630759460,-2923.07,0.00024095,30]
[380271646,1755630759520,-400.0,0.00024095,30]
[380271647,1755630759577,-531.2,0.00024095,30]
[380271648,1755630759634,-400.0,0.00024095,30]
[380271649,1755630759692,-888.25,0.00024095,30]
[380271650,1755630759754,-842.32,0.00024095,30]
[380271651,1755630759813,-1920.95,0.00024095,30]
[380271652,1755630759871,-400.0,0.00024095,30]
[380271653,1755630759929,-1522.14,0.00024095,30]
[380271654,1755630759990,-1843.66,0.00024095,30]
[380271655,1755630760051,-589.48,0.00024095,30]
[380271656,1755630760112,-1357.11,0.00024095,30]
[380271657,1755630760174,-1090.36,0.00024095,30]
[380271658,1755630760372,-400.0,0.00024095,30]
[380271659,1755630760437,-400.0,0.00024095,30]
[380271660,1755630760501,-2036.5,0.00024095,30]
[380271661,1755630760559,-2160.01,0.00024095,30]
[380271662,1755630760614,-400.0,0.00024095,30]
[380271663,1755630760673,-733.36,0.00024095,30]
[380271664,1755630760729,-400.0,0.00024095,30]
[380271665,1755630760785,-1567.0,0.00024095,30]
[380271666,1755630760844,-2269.73,0.00024095,30]
[380271667,1755630760905,-7066.74,0.00024095,30]
[380271668,1755630760964,-400.0,0.00024095,30]
[380271669,1755630761023,-2339.92,0.00024095,30]
[380271670,1755630761082,-400.0,0.00024095,30]
[380271671,1755630761144,-400.0,0.00024095,30]
[380271672,1755630761205,-1713.64,0.00024095,30]
[380271673,1755630761263,-530.76,0.00024095,30]
[380271674,1755630761326,-1159.8,0.00024095,30]
[380271675,1755630761389,-400.0,0.00024095,30]
[380271676,1755630761453,-594.02,0.00024095,30]
[380271677,1755630761517,-2161.34,0.00024095,30]
[380271678,1755630761576,-785.37,0.00024095,30]
[380271679,1755630761633,-925.07,0.00024095,30]
[380271680,1755630761693,-400.0,0.00024095,30]
[380271681,1755630761750,-1533.15,0.00024095,30]
[380271682,1755630761808,-827.42,0.00024095,30]
[380271683,1755630761866,-1094.8,0.00024095,30]
[380271684,1755630761926,-400.0,0.00024095,30]
[380271685,1755630761992,-1481.14,0.00024095,30]
[380271686,1755630762059,-400.0,0.00024095,30]
[380271687,1755630762126,-400.0,0.00024095,30]
[380271688,1755630762189,-424.97,0.00024095,30]
[380271689,1755630762255,-2049.37,0.00024095,30]
[380271690,1755630762318,-400.0,0.00024095,30]
[380271691,1755630762385,-535.14,0.00024095,30]
[380271692,1755630762450,-2172.05,0.00024095,30]
[380271693,1755630762519,-400.0,0.00024095,30]
[380271694,1755630762583,-1532.6,0.00024095,30]
[380271695,1755630762644,-831.55,0.00024095,30]
[380271696,1755630762709,-853.09,0.00024095,30]
[380271697,1755630762766,-1512.48,0.00024095,30]
[380271698,1755630762822,-400.0,0.00024095,30]
[380271699,1755630762879,-757.23,0.00024095,30]
[380271700,1755630762933,-400.0,0.00024095,30]
[380271701,1755630762992,-834.74,0.00024095,30]
[380271702,1755630763054,-400.0,0.00024095,30]
[380271703,1755630763114,-528.08,0.00024095,30]
[380271704,1755630763174,-1466.98,0.00024095,30]
[380271705,1755630763241,-1667.74,0.00024095,30]
[380271706,1755630763306,-851.95,0.00024095,30]
[380271707,1755630763371,-400.0,0.00024095,30]
[380271708,1755630763450,-3654.91,0.00024095,30]
[380271709,1755630763514,-400.0,0.00024095,30]
[380271710,1755630763577,-585.37,0.00024095,30]
[380271711,1755630763638,-1678.23,0.00024095,30]
[380271712,1755630763701,-500.95,0.00024095,30]
[380271713,1755630763759,-400.0,0.00024095,30]
[380271714,1755630763818,-1296.84,0.00024095,30]
[380271715,1755630763875,-990.17,0.00024095,30]
[380271716,1755630763932,-1498.02,0.00024095,30]
[380271717,1755630763990,-414.92,0.00024095,30]
[380271718,1755630764053,-490.9,0.00024095,30]
[380271719,1755630764115,-1422.74,0.00024095,30]
[380271720,1755630764182,-837.81,0.00024095,30]
[380271721,1755630764263,-684.54,0.00024095,30]
[380271722,1755630764333,-1994.78,0.00024095,30]
[380271723,1755630764401,-400.0,0.00024095,30]
[380271724,1755630764466,-916.66,0.00024095,30]
[380271725,1755630764531,-1483.77,0.00024095,30]
[380271726,1755630764598,-5424.17,0.00024095,30]
[380271727,1755630764661,-2023.25,0.00024095,30]
[380271728,1755630764733,-400.0,0.00024095,30]
[380271729,1755630764801,-827.87,0.00024095,30]
[380271730,1755630764864,-400.0,0.00024095,30]
[380271731,1755630764928,-1863.32,0.00024095,30]
[380271732,1755630764992,-1962.6,0.00024095,30]
[380271733,1755630765059,-539.12,0.00024095,30]
[380271734,1755630765129,-1489.75,0.00024095,30]
[380271735,1755630765200,-1279.96,0.00024095,30]
[380271736,1755630765271,-804.37,0.00024095,30]
[380271737,1755630765337,-879.44,0.00024095,30]
[380271738,1755630765403,-481.40712967,0.00024095,30]
[380271739,1755630765468,-400.0,0.00024095,30]
[380271740,1755630765530,-736.46,0.00024095,30]
[380271741,1755630765591,-400.0,0.00024095,30]
[380271742,1755630765654,-3004.1,0.00024095,30]
[380271743,1755630765723,-540.41,0.00024095,30]
[380271744,1755630765785,-903.83,0.00024095,30]
[380271745,1755630765846,-400.0,0.00024095,30]
[380271746,1755630765906,-400.0,0.00024095,30]
[380271747,1755630765971,-452.13,0.00024095,30]
[380271748,1755630766033,-768.98,0.00024095,30]
[380271749,1755630766097,-1813.68,0.00024095,30]
[380271750,1755630766163,-400.0,0.00024095,30]
[380271751,1755630766232,-400.0,0.00024095,30]
[380271752,1755630766824,-400.0,0.00024095,30]
[380271753,1755630766891,-2223.82,0.00024095,30]
[380271754,1755630766953,-400.0,0.00024095,30]
[380271755,1755630767015,-2140.5,0.00024095,30]
[380271756,1755630767077,-400.0,0.00024095,30]
[380271757,1755630767140,-762.55,0.00024095,30]
[380271758,1755630767207,-2978.0,0.00024095,30]
[380271759,1755630767272,-1352.34,0.00024095,30]
[380271760,1755630767337,-400.0,0.00024095,30]
[380271761,1755630767416,-447.68,0.00024095,30]
[380271762,1755630767495,-2258.26,0.00024095,30]
[380271763,1755630767557,-400.0,0.00024095,30]
[380271764,1755630767615,-400.0,0.00024095,30]
[380271765,1755630767676,-666.94,0.00024095,30]
[380271766,1755630767734,-400.0,0.00024095,30]
[380271767,1755630767794,-400.0,0.00024095,30]
[380271768,1755630767853,-400.0,0.00024095,30]
[380271769,1755630767924,-699.19,0.00024095,30]
[380271770,1755630767991,-786.12,0.00024095,30]
[380271771,1755630768060,-1078.83,0.00024095,30]
[380271772,1755630768125,-400.0,0.00024095,30]
[380271773,1755630768187,-685.74,0.00024095,30]
[380271774,1755630768248,-400.0,0.00024095,30]
[380271775,1755630768309,-1514.98,0.00024095,30]
[380271776,1755630768372,-989.43,0.00024095,30]
[380271777,1755630768439,-686.36,0.00024095,30]
[380271778,1755630768501,-400.0,0.00024095,30]
[380271779,1755630768563,-783.3,0.00024095,30]
[380271780,1755630768624,-400.0,0.00024095,30]
[380271781,1755630768682,-400.0,0.00024095,30]
[380271782,1755630768740,-400.0,0.00024095,30]
[380271783,1755630768803,-3991.88,0.00024095,30]
[380271784,1755630768860,-927.22,0.00024095,30]
[380271785,1755630768919,-858.73,0.00024095,30]
[380271786,1755630768981,-463.57,0.00024095,30]
[380271787,1755630769042,-638.06,0.00024095,30]
[380271788,1755630769123,-1217.67,0.00024095,30]
[380271789,1755630769205,-1055.26,0.00024095,30]
[380271790,1755630769272,-617.22,0.00024095,30]
[380271791,1755630769338,-654.88,0.00024095,30]
[380271792,1755630769405,-927.42,0.00024095,30]
[380271793,1755630769472,-400.0,0.00024095,30]
[380271794,1755630769535,-877.36,0.00024095,30]
[380271795,1755630769599,-1451.41,0.00024095,30]
[380271796,1755630769659,-400.0,0.00024095,30]
[380271797,1755630769724,-774.15,0.00024095,30]
[380271798,1755630769787,-400.0,0.00024095,30]
[380271799,1755630769852,-400.0,0.00024095,30]
[380271800,1755630769916,-755.17,0.00024095,30]
[380271801,1755630769980,-1269.4,0.00024095,30]
[380271802,1755630770043,-850.21,0.00024095,30]
[380271803,1755630770107,-400.0,0.00024095,30]
[380271804,1755630770170,-2050.78,0.00024095,30]
[380271805,1755630770236,-1574.07,0.00024095,30]
[380271806,1755630770301,-400.0,0.00024095,30]
[380271807,1755630770367,-3252.62,0.00024095,30]
[380271808,1755630770434,-400.0,0.00024095,30]
[380271809,1755630770496,-893.8,0.00024095,30]